[Event "EYCC Girls-U10 2019"]
[Site "Bratislava"]
[Date "2019.08.08"]
[Round "7.16"]
[White "Bagas, Ana"]
[Black "Horkova, Tereza"]
[Result "1-0"]
[ECO "C22"]
[WhiteElo "1442"]
[BlackElo "1287"]
[Annotator "NA"]
[PlyCount "79"]
[EventDate "2019.08.02"]
[EventType "swiss"]
[EventCountry "SVK"]
[SourceTitle "playchess.com"]
[Source "ChessBase"]
[SourceQuality "1"]
[TimeControl "40/5400+30:1800+30"]

1. e4 e5 2. d4 exd4 3. Qxd4 Nc6 4. Qe3 Nf6 5. Nc3 Bb4 6. Bd2 O-O 7. O-O-O Re8 8. Bc4 d6 9. f3 {[%emt 0:02:58]} Bc5 {[%emt 0:10:50]} 10. Qg5 {[%emt 0:08:33]} a6 {[%emt 0:09:10]} 11. Nd5 Ne5 {[%emt 0:11:58]} 12. Nxf6+ {[%emt 0:14:59]} Qxf6 {[%emt 0:00:12]} 13. Qxf6 {[%emt 0:00:09]} gxf6 14. Bd5 c6 {[%emt 0:00:36]} 15. Bb3 {[%emt 0:07:47]} b5 {[%emt 0:04:50]} 16. Ba5 {[%emt 0:05:11]} Rb8 {[%emt 0:01:38]} 17. Bc7 {[%emt 0:00:45]} Rb7 {[%emt 0:01:18]} 18. Bxd6 {[%emt 0:00:22]} Bxd6 {[%emt 0:00:09]} 19. Rxd6 {[%emt 0:00:08]} c5 {[%emt 0:14:49]} 20. Bd5 {[%emt 0:01:30]} Rd7 {[%emt 0:02:55]} 21. Rxf6 {[%emt 0:03:16]} Red8 {[%emt 0:01:23]} 22. Ne2 {[%emt 0:04:59]} Kg7 23. Rb6 {[%emt 0:09:25]} Re7 {[%emt 0:06:40]} 24. Ng3 {[%emt 0:10:17]} Red7 {[%emt 0:14:42]} 25. Nf5+ {[%emt 0:02:39]} Kf8 26. Rf6 {[%emt 0:04:41]} Rc7 {[%emt 0:04:26]} 27. h3 {[%emt 0:06:59]} Bb7 {[%emt 0:01:34]} 28. Bxb7 {[%emt 0:01:56]} Rxb7 {[%emt 0:00:07]} 29. Rxa6 Rbd7 {[%emt 0:02:34]} 30. Rb6 {[%emt 0:03:09]} Ra7 {[%emt 0:02:05]} 31. Kb1 {[%emt 0:05:20]} Rad7 {[%emt 0:00:26]} 32. b3 {[%emt 0:02:56]} Ra7 {[%emt 0:01:06]} 33. Rxb5 {[%emt 0:01:02]} Rda8 {[%emt 0:00:45]} 34. a4 {[%emt 0:00:51]} Rc7 {[%emt 0:00:28]} 35. f4 {[%emt 0:01:39]} Ng6 {[%emt 0:00:31]} 36. g3 {[%emt 0:00:26]} Rd8 {[%emt 0:00:58]} 37. Rh2 {[%emt 0:01:17]} Rd1+ {[%emt 0:01:07]} 38. Kb2 {[%emt 0:00:08]} Re1 {[%emt 0:00:33]} 39. Rb8+ {[%emt 0:00:09]} Rc8 {[%emt 0:00:11]} 40. Rxc8# {[%emt 0:00:00]} 1-0

[Event "EYCC Girls-U10 2019"]
[Site "Bratislava"]
[Date "2019.08.08"]
[Round "7.17"]
[White "Chevillon, Manon"]
[Black "Pavesi, Bianca"]
[Result "0-1"]
[ECO "B10"]
[WhiteElo "1232"]
[BlackElo "1537"]
[Annotator "NA"]
[PlyCount "138"]
[EventDate "2019.08.02"]
[EventType "swiss"]
[EventCountry "SVK"]
[SourceTitle "playchess.com"]
[Source "ChessBase"]
[SourceQuality "1"]
[TimeControl "40/5400+30:1800+30"]

1. e4 {[%emt 0:00:00]} c6 {[%emt 0:00:06]} 2. Nc3 {[%emt 0:00:34]} d5 {[%emt 0:01:32]} 3. Nf3 {[%emt 0:01:09]} dxe4 {[%emt 0:02:45]} 4. Nxe4 {[%emt 0:01:09]} Nf6 {[%emt 0:03:19]} 5. Qe2 {[%emt 0:02:12]} Nxe4 {[%emt 0:06:04]} 6. Qxe4 {[%emt 0:01:44]} Nd7 {[%emt 0:03:50]} 7. Bc4 {[%emt 0:03:37]} Nf6 {[%emt 0:03:53]} 8. Qe2 {[%emt 0:05:16]} Bf5 {[%emt 0:06:54]} 9. d3 {[%emt 0:04:02]} e6 {[%emt 0:05:12]} 10. O-O {[%emt 0:04:32]} Be7 {[%emt 0:06:46]} 11. Rd1 {[%emt 0:07:59]} O-O {[%emt 0:04:22]} 12. d4 {[%emt 0:02:32]} Qb6 {[%emt 0:04:47]} 13. c3 {[%emt 0:04:36]} Rfd8 {[%emt 0:03:33]} 14. h3 {[%emt 0:04:09]} Rac8 {[%emt 0:08:14]} 15. Be3 {[%emt 0:04:36]} Qc7 {[%emt 0:05:06]} 16. Bb3 {[%emt 0:12:27]} a5 {[%emt 0:06:44]} 17. a4 {[%emt 0:03:53]} h6 {[%emt 0:04:20]} 18. Ne5 {[%emt 0:09:24]} Bd6 {[%emt 0:03:27]} 19. f4 {[%emt 0:04:10]} Nd5 {[%emt 0:05:06]} 20. Re1 {[%emt 0:02:24]} Nxe3 {[%emt 0:01:36]} 21. Qxe3 {[%emt 0:00:30]} c5 {[%emt 0:01:52]} 22. g3 {[%emt 0:05:08]} Bxe5 {[%emt 0:01:35]} 23. dxe5 {[%emt 0:01:12]} Bxh3 {[%emt 0:01:14]} 24. Bc2 {[%emt 0:02:17]} Bg4 {[%emt 0:01:27]} 25. Be4 {[%emt 0:02:04]} Rd7 {[%emt 0:02:37]} 26. Bf3 {[%emt 0:01:45]} Bxf3 {[%emt 0:00:55]} 27. Qxf3 {[%emt 0:00:10]} Rd2 {[%emt 0:01:04]} 28. Re2 {[%emt 0:01:10]} Rcd8 {[%emt 0:01:08]} 29. Rxd2 {[%emt 0:01:47]} Rxd2 {[%emt 0:00:09]} 30. Rb1 {[%emt 0:00:25]} Qb6 {[%emt 0:01:39]} 31. Qe3 {[%emt 0:02:32]} Rc2 {[%emt 0:02:08]} 32. b3 {[%emt 0:00:54]} Qc6 {[%emt 0:00:17]} 33. Qf2 {[%emt 0:03:01]} Rxf2 {[%emt 0:00:21]} 34. Kxf2 {[%emt 0:00:05]} Qe4 {[%emt 0:00:51]} 35. Rb2 {[%emt 0:00:46]} Qd3 {[%emt 0:00:16]} 36. Re2 {[%emt 0:00:49]} Qxc3 {[%emt 0:00:32]} 37. Re3 {[%emt 0:00:15]} Qc2+ {[%emt 0:00:41]} 38. Kf3 {[%emt 0:00:12]} Kh7 {[%emt 0:00:28]} 39. g4 {[%emt 0:00:32]} Qd1+ {[%emt 0:00:45]} 40. Kg3 {[%emt 0:00:00]} Kg6 {[%emt 0:01:57]} 41. Kf2 {[%emt 0:03:40]} Qd4 {[%emt 0:00:55]} 42. Kf3 {[%emt 0:01:21]} h5 {[%emt 0:02:46]} 43. gxh5+ {[%emt 0:00:47]} Kxh5 {[%emt 0:00:24]} 44. Re1 {[%emt 0:01:22]} Qd5+ {[%emt 0:01:04]} 45. Kf2 {[%emt 0:00:56]} Qxb3 {[%emt 0:01:28]} 46. Rh1+ {[%emt 0:00:36]} Kg4 {[%emt 0:03:52]} 47. Rg1+ {[%emt 0:02:12]} Kxf4 {[%emt 0:02:26]} 48. Rxg7 {[%emt 0:02:13]} Qb2+ {[%emt 0:01:53]} 49. Kg1 {[%emt 0:01:23]} c4 {[%emt 0:03:22]} 50. Rxf7+ {[%emt 0:00:32]} Kxe5 {[%emt 0:00:15]} 51. Rf2 {[%emt 0:00:33]} Qxf2+ {[%emt 0:01:08]} 52. Kxf2 {[%emt 0:00:46]} Kd4 {[%emt 0:00:21]} 53. Ke2 {[%emt 0:00:18]} Kc3 {[%emt 0:00:12]} 54. Kd1 {[%emt 0:00:31]} Kb2 {[%emt 0:00:06]} 55. Ke2 {[%emt 0:01:12]} c3 {[%emt 0:00:07]} 56. Kd3 {[%emt 0:00:19]} c2 {[%emt 0:00:09]} 57. Kd4 {[%emt 0:00:52]} c1=Q {[%emt 0:00:08]} 58. Ke5 {[%emt 0:00:26]} Qd2 {[%emt 0:00:18]} 59. Kxe6 {[%emt 0:00:28]} Qd4 {[%emt 0:00:41]} 60. Ke7 {[%emt 0:00:22]} Qd5 {[%emt 0:00:36]} 61. Kf6 {[%emt 0:00:25]} Kc3 {[%emt 0:00:31]} 62. Kg6 {[%emt 0:00:21]} Qe5 {[%emt 0:00:30]} 63. Kh6 {[%emt 0:00:12]} Kd4 {[%emt 0:00:16]} 64. Kg6 {[%emt 0:00:23]} Kd5 {[%emt 0:00:18]} 65. Kf7 {[%emt 0:00:20]} Kd6 {[%emt 0:00:38]} 66. Kg6 {[%emt 0:00:11]} Ke6 {[%emt 0:02:12]} 67. Kh7 {[%emt 0:00:54]} Kf6 {[%emt 0:00:56]} 68. Kg8 {[%emt 0:00:25]} Qe7 {[%emt 0:00:27]} 69. Kh8 {[%emt 0:00:08]} Qg7# {[%emt 0:00:09]} 0-1

[Event "EYCC Girls-U10 2019"]
[Site "Bratislava"]
[Date "2019.08.08"]
[Round "7.18"]
[White "Bat, Anu"]
[Black "Buchtova, Viktorie"]
[Result "1-0"]
[ECO "C14"]
[WhiteElo "1457"]
[BlackElo "1228"]
[Annotator "NA"]
[PlyCount "51"]
[EventDate "2019.08.02"]
[EventType "swiss"]
[EventCountry "SVK"]
[SourceTitle "playchess.com"]
[Source "ChessBase"]
[SourceQuality "1"]
[TimeControl "40/5400+30:1800+30"]

1. d4 {[%emt 0:00:00]} Nf6 {[%emt 0:00:00]} 2. Bg5 {[%emt 0:00:00]} e6 {[%emt 0:00:00]} 3. e4 {[%emt 0:00:06]} Be7 {[%emt 0:00:16]} 4. Nc3 {[%emt 0:00:14]} d5 {[%emt 0:00:22]} 5. e5 {[%emt 0:00:52]} Nfd7 {[%emt 0:03:40]} 6. Bxe7 {[%emt 0:00:59]} Qxe7 {[%emt 0:01:32]} 7. Bd3 {[%emt 0:04:57]} O-O {[%emt 0:04:37]} 8. Qd2 {[%emt 0:01:53]} c5 {[%emt 0:02:21]} 9. Nb5 {[%emt 0:12:09]} Nc6 {[%emt 0:02:46]} 10. c3 {[%emt 0:03:02]} a6 {[%emt 0:07:25]} 11. Na3 {[%emt 0:03:12]} cxd4 {[%emt 0:03:36]} 12. cxd4 {[%emt 0:00:12]} Nxd4 {[%emt 0:05:08]} 13. Bxh7+ {[%emt 0:01:52]} Kxh7 {[%emt 0:00:28]} 14. Qxd4 {[%emt 0:00:32]} Qg5 {[%emt 0:05:12]} 15. Nf3 {[%emt 0:04:54]} Qxg2 {[%emt 0:01:39]} 16. Ke2 {[%emt 0:01:21]} Qg6 {[%emt 0:06:24]} 17. Rag1 {[%emt 0:00:37]} Qh5 {[%emt 0:01:36]} 18. Rg5 {[%emt 0:06:24]} Qh6 {[%emt 0:02:27]} 19. Rhg1 {[%emt 0:03:02]} Rg8 {[%emt 0:00:30]} 20. R5g4 {[%emt 0:01:38]} g5 {[%emt 0:02:23]} 21. Nxg5+ {[%emt 0:00:49]} Kg7 {[%emt 0:01:49]} 22. Nxe6+ {[%emt 0:00:51]} Kh8 {[%emt 0:00:48]} 23. Rxg8+ {[%emt 0:00:13]} Kh7 {[%emt 0:00:07]} 24. R1g7+ {[%emt 0:00:30]} Qxg7 {[%emt 0:00:20]} 25. Rxg7+ {[%emt 0:00:07]} Kh6 {[%emt 0:00:22]} 26. Qh4# {[%emt 0:00:11]} 1-0

[Event "EYCC Girls-U10 2019"]
[Site "Bratislava"]
[Date "2019.08.08"]
[Round "7.19"]
[White "Toth, Timea"]
[Black "Zubkovskaya, Ekaterina"]
[Result "1/2-1/2"]
[ECO "A30"]
[WhiteElo "1964"]
[BlackElo "1449"]
[Annotator "NA"]
[PlyCount "52"]
[EventDate "2019.08.02"]
[EventType "swiss"]
[EventCountry "SVK"]
[SourceTitle "playchess.com"]
[Source "ChessBase"]
[SourceQuality "1"]
[TimeControl "40/5400+30:1800+30"]

1. c4 {[%emt 0:00:00]} c5 {[%emt 0:00:00]} 2. Nf3 {[%emt 0:00:00]} Nf6 {[%emt 0:00:00]} 3. e3 {[%emt 0:00:21]} d5 {[%emt 0:00:25]} 4. cxd5 {[%emt 0:00:08]} Nxd5 {[%emt 0:00:08]} 5. Qb3 {[%emt 0:00:35]} Nc6 {[%emt 0:00:38]} 6. Bc4 {[%emt 0:00:19]} e6 {[%emt 0:00:20]} 7. a3 {[%emt 0:11:17]} Be7 {[%emt 0:01:10]} 8. O-O {[%emt 0:17:15]} O-O {[%emt 0:00:09]} 9. Rd1 {[%emt 0:09:09]} a6 {[%emt 0:00:55]} 10. Be2 {[%emt 0:09:09]} b5 {[%emt 0:00:36]} 11. d4 {[%emt 0:03:11]} c4 {[%emt 0:00:15]} 12. Qc2 {[%emt 0:00:27]} f5 {[%emt 0:01:11]} 13. Nc3 {[%emt 0:07:32]} Bd6 {[%emt 0:03:38]} 14. Nxd5 {[%emt 0:01:41]} exd5 {[%emt 0:00:09]} 15. Bd2 {[%emt 0:03:48]} Bd7 {[%emt 0:01:58]} 16. Ne1 {[%emt 0:13:58]} Be8 {[%emt 0:00:50]} 17. f4 {[%emt 0:00:29]} Nb8 {[%emt 0:01:24]} 18. Nf3 {[%emt 0:00:27]} Bh5 {[%emt 0:00:33]} 19. g3 {[%emt 0:00:41]} Nd7 {[%emt 0:00:39]} 20. Kf1 {[%emt 0:00:41]} g6 {[%emt 0:01:00]} 21. Ng5 {[%emt 0:00:42]} Bxe2+ {[%emt 0:01:05]} 22. Kxe2 {[%emt 0:00:06]} Qe7 {[%emt 0:00:29]} 23. Kf2 {[%emt 0:00:04]} Nf6 {[%emt 0:00:24]} 24. Kg1 {[%emt 0:01:25]} Rfe8 {[%emt 0:00:27]} 25. h3 {[%emt 0:00:23]} Qd7 {[%emt 0:00:49]} 26. Kg2 {[%emt 0:01:33]} Qe7 {[%emt 0:01:59]} 1/2-1/2

[Event "EYCC Girls-U10 2019"]
[Site "Bratislava"]
[Date "2019.08.08"]
[Round "7.20"]
[White "Gretic, Tina"]
[Black "Abbasova, Zarifa"]
[Result "0-1"]
[ECO "C42"]
[WhiteElo "1188"]
[BlackElo "1353"]
[Annotator "NA"]
[PlyCount "80"]
[EventDate "2019.08.02"]
[EventType "swiss"]
[EventCountry "SVK"]
[SourceTitle "playchess.com"]
[Source "ChessBase"]
[SourceQuality "1"]
[TimeControl "40/5400+30:1800+30"]

1. e4 {[%emt 0:00:00]} e5 {[%emt 0:00:00]} 2. Nf3 {[%emt 0:00:00]} Nf6 {[%emt 0:00:00]} 3. Nc3 {[%emt 0:00:00]} Bb4 {[%emt 0:00:00]} 4. a3 {[%emt 0:18:14]} Bxc3 {[%emt 0:01:01]} 5. dxc3 {[%emt 0:00:17]} d6 {[%emt 0:00:10]} 6. Bd3 {[%emt 0:00:43]} O-O {[%emt 0:03:48]} 7. h3 {[%emt 0:01:15]} h6 {[%emt 0:01:26]} 8. O-O {[%emt 0:00:23]} Be6 {[%emt 0:02:39]} 9. Re1 {[%emt 0:02:41]} Nc6 {[%emt 0:06:21]} 10. Bb5 {[%emt 0:04:59]} Nd7 {[%emt 0:04:33]} 11. Bxc6 {[%emt 0:01:36]} bxc6 {[%emt 0:00:04]} 12. Be3 {[%emt 0:01:55]} f5 {[%emt 0:04:50]} 13. exf5 {[%emt 0:02:12]} Bxf5 {[%emt 0:00:09]} 14. Qd2 {[%emt 0:01:58]} Bxh3 {[%emt 0:04:00]} 15. gxh3 {[%emt 0:05:50]} Rxf3 {[%emt 0:00:10]} 16. Kg2 {[%emt 0:00:46]} Qf6 {[%emt 0:01:08]} 17. Rg1 {[%emt 0:03:55]} Qf5 {[%emt 0:02:10]} 18. Rh1 {[%emt 0:04:53]} Rf8 {[%emt 0:01:41]} 19. Kf1 {[%emt 0:00:45]} Rxh3 {[%emt 0:00:51]} 20. Rg1 {[%emt 0:01:59]} Qf3 {[%emt 0:03:51]} 21. Re1 {[%emt 0:01:55]} Kh8 {[%emt 0:02:28]} 22. Qe2 {[%emt 0:02:57]} Nb6 {[%emt 0:05:26]} 23. Qxf3 {[%emt 0:03:35]} Rhxf3 {[%emt 0:00:20]} 24. Bxb6 {[%emt 0:02:13]} cxb6 {[%emt 0:01:52]} 25. Re2 {[%emt 0:00:34]} g5 {[%emt 0:00:21]} 26. Rg4 {[%emt 0:03:22]} Kg7 {[%emt 0:00:20]} 27. Kg1 {[%emt 0:05:37]} Kg6 {[%emt 0:00:47]} 28. Rg2 {[%emt 0:00:54]} h5 {[%emt 0:00:09]} 29. Kf1 {[%emt 0:00:11]} g4 {[%emt 0:00:08]} 30. Kg1 {[%emt 0:00:42]} Kg5 {[%emt 0:00:20]} 31. Kf1 {[%emt 0:00:29]} g3 {[%emt 0:00:31]} 32. Kg1 {[%emt 0:03:16]} h4 {[%emt 0:00:12]} 33. fxg3 {[%emt 0:01:58]} hxg3 {[%emt 0:02:56]} 34. Re1 {[%emt 0:01:17]} Kg4 {[%emt 0:00:52]} 35. Re4+ {[%emt 0:01:52]} R8f4 {[%emt 0:00:10]} 36. Re1 {[%emt 0:01:39]} Rf2 {[%emt 0:00:41]} 37. Kh1 {[%emt 0:01:34]} Rxg2 {[%emt 0:00:46]} 38. Kxg2 {[%emt 0:00:09]} Rf2+ {[%emt 0:00:06]} 39. Kg1 {[%emt 0:00:11]} Kf3 {[%emt 0:00:08]} 40. Kh1 {[%emt 0:00:00]} e4 {[%emt 0:00:00]} 0-1

[Event "EYCC Girls-U10 2019"]
[Site "Bratislava"]
[Date "2019.08.08"]
[Round "7.21"]
[White "Guzun, Lavinia"]
[Black "Ciarletta, Iris"]
[Result "1-0"]
[ECO "C11"]
[WhiteElo "1205"]
[BlackElo "1329"]
[Annotator "NA"]
[PlyCount "103"]
[EventDate "2019.08.02"]
[EventType "swiss"]
[EventCountry "SVK"]
[SourceTitle "playchess.com"]
[Source "ChessBase"]
[SourceQuality "1"]
[TimeControl "40/5400+30:1800+30"]

1. e4 {[%emt 0:00:00]} e6 {[%emt 0:00:00]} 2. d4 {[%emt 0:00:00]} d5 {[%emt 0:00:00]} 3. Nc3 {[%emt 0:00:00]} Nf6 {[%emt 0:00:00]} 4. e5 {[%emt 0:00:00]} Nfd7 {[%emt 0:00:00]} 5. f4 {[%emt 0:00:00]} c5 {[%emt 0:00:16]} 6. Nf3 {[%emt 0:00:00]} Nc6 {[%emt 0:01:09]} 7. Be3 {[%emt 0:00:00]} Qb6 {[%emt 0:00:23]} 8. Na4 {[%emt 0:00:00]} Qa5+ {[%emt 0:00:22]} 9. c3 {[%emt 0:00:00]} cxd4 {[%emt 0:00:42]} 10. b4 {[%emt 0:00:16]} Qc7 {[%emt 0:00:26]} 11. Nxd4 {[%emt 0:01:16]} Nb6 {[%emt 0:03:02]} 12. Nb5 {[%emt 0:09:26]} Qd8 {[%emt 0:01:04]} 13. Nxa7 {[%emt 0:29:17]} Nxa4 {[%emt 0:02:10]} 14. Qxa4 {[%emt 0:01:20]} Qd7 {[%emt 0:01:12]} 15. Bb5 {[%emt 0:01:47]} Be7 {[%emt 0:00:52]} 16. Qc2 {[%emt 0:03:55]} O-O {[%emt 0:01:08]} 17. Nxc6 {[%emt 0:02:20]} bxc6 {[%emt 0:00:40]} 18. Bd3 {[%emt 0:00:33]} h6 {[%emt 0:00:35]} 19. O-O {[%emt 0:00:59]} Ba6 {[%emt 0:01:47]} 20. f5 {[%emt 0:03:18]} exf5 {[%emt 0:02:47]} 21. Rxf5 {[%emt 0:02:05]} Qe6 {[%emt 0:03:14]} 22. Bxa6 {[%emt 0:07:55]} Rxa6 {[%emt 0:00:20]} 23. Qf2 {[%emt 0:00:42]} Rfa8 {[%emt 0:01:55]} 24. Rh5 {[%emt 0:01:41]} d4 {[%emt 0:01:30]} 25. Bxd4 {[%emt 0:04:57]} Rxa2 {[%emt 0:00:30]} 26. Rxa2 {[%emt 0:00:24]} Rxa2 {[%emt 0:00:07]} 27. Qf1 {[%emt 0:01:23]} Rb2 {[%emt 0:04:05]} 28. h3 {[%emt 0:10:37]} Qd5 {[%emt 0:04:33]} 29. Qf3 {[%emt 0:03:30]} Qd7 {[%emt 0:01:54]} 30. Qf5 {[%emt 0:03:13]} Qe8 {[%emt 0:02:34]} 31. Qg4 {[%emt 0:03:02]} Rb1+ {[%emt 0:02:35]} 32. Kh2 {[%emt 0:00:37]} Bg5 {[%emt 0:02:42]} 33. h4 {[%emt 0:00:50]} Bc1 {[%emt 0:03:31]} 34. e6 {[%emt 0:02:46]} Qf8 {[%emt 0:05:03]} 35. e7 {[%emt 0:02:58]} Bf4+ {[%emt 0:01:50]} 36. Qxf4 {[%emt 0:00:33]} Qxe7 {[%emt 0:00:30]} 37. Rxh6 {[%emt 0:02:44]} gxh6 {[%emt 0:02:39]} 38. Qg4+ {[%emt 0:00:17]} Kf8 {[%emt 0:01:11]} 39. Bc5 {[%emt 0:00:00]} Qxc5 {[%emt 0:00:00]} 40. bxc5 {[%emt 0:00:00]} Rb5 {[%emt 0:00:00]} 41. Qc8+ {[%emt 0:00:26]} Kg7 {[%emt 0:02:15]} 42. Qxc6 {[%emt 0:00:08]} Rb1 {[%emt 0:00:39]} 43. Qe4 {[%emt 0:00:32]} Rc1 {[%emt 0:01:22]} 44. c6 {[%emt 0:00:05]} Kg8 {[%emt 0:00:27]} 45. c7 {[%emt 0:00:10]} Rxc3 {[%emt 0:00:23]} 46. Qe8+ {[%emt 0:00:06]} Kh7 {[%emt 0:01:10]} 47. Qxf7+ {[%emt 0:00:17]} Kh8 {[%emt 0:00:06]} 48. Qf6+ {[%emt 0:00:11]} Kh7 {[%emt 0:00:06]} 49. Qxc3 {[%emt 0:00:07]} h5 {[%emt 0:00:03]} 50. c8=Q {[%emt 0:00:18]} Kg6 {[%emt 0:00:18]} 51. Qd7 {[%emt 0:00:27]} Kh6 {[%emt 0:00:09]} 52. Qcg7# {[%emt 0:00:12]} 1-0

[Event "EYCC Girls-U10 2019"]
[Site "Bratislava"]
[Date "2019.08.08"]
[Round "7.22"]
[White "Salmina, Veronika"]
[Black "Briem, Gudrun Fanney"]
[Result "1-0"]
[ECO "E32"]
[WhiteElo "1335"]
[BlackElo "1199"]
[Annotator "NA"]
[PlyCount "113"]
[EventDate "2019.08.02"]
[EventType "swiss"]
[EventCountry "SVK"]
[SourceTitle "playchess.com"]
[Source "ChessBase"]
[SourceQuality "1"]
[TimeControl "40/5400+30:1800+30"]

1. d4 Nf6 2. c4 e6 3. Nc3 Bb4 4. Qc2 b6 5. Bg5 Bb7 6. f3 h6 7. Bh4 d5 8. cxd5 exd5 9. a3 Bxc3+ 10. Qxc3 O-O 11. g4 g5 12. Bg3 c5 13. dxc5 Nxg4 14. Rd1 bxc5 15. Qxc5 Nd7 16. Qd4 Ngf6 17. h4 g4 18. fxg4 Qa5+ 19. b4 Qxa3 20. Bd6 Ne4 21. Rd3 Qc1+ 22. Rd1 Qc3+ 23. Qxc3 Nxc3 24. Rd3 d4 25. Bxf8 Bxh1 26. Bxh6 Rc8 27. Rxd4 Ne5 28. Bh3 Ne4 29. Rd5 f6 30. g5 Rc1+ 31. Rd1 Rxd1+ 32. Kxd1 fxg5 33. hxg5 Nf7 34. Be6 Nc3+ 35. Kc2 Bd5 36. Bxf7+ Kxf7 37. Kxc3 a6 38. Nf3 Be4 39. Kc4 Bf5 40. Kc5 Kg8 41. Kb6 Be6 42. e3 Bc4 43. Ne5 Bf1 44. Nc6 Kh7 45. Nb8 Bd3 46. Nxa6 Bb1 47. b5 Be4 48. Nc7 Bb1 49. Ka7 Be4 50. b6 Bf5 51. b7 Bg6 52. b8=Q Be8 53. Qb3 Bh5 54. Qd3+ Kg8 55. Qf5 Bf7 56. Qf6 Bd5 57. Qg7# 1-0

[Event "EYCC Girls-U10 2019"]
[Site "Bratislava"]
[Date "2019.08.08"]
[Round "7.24"]
[White "Trunz, Tamila"]
[Black "Bursali, Ela"]
[Result "0-1"]
[ECO "B23"]
[WhiteElo "1274"]
[BlackElo "1197"]
[Annotator "NA"]
[PlyCount "146"]
[EventDate "2019.08.02"]
[EventType "swiss"]
[EventCountry "SVK"]
[SourceTitle "playchess.com"]
[Source "ChessBase"]
[SourceQuality "1"]
[TimeControl "40/5400+30:1800+30"]

1. e4 {[%emt 0:00:00]} c5 {[%emt 0:00:00]} 2. Nc3 {[%emt 0:00:00]} Nc6 {[%emt 0:00:34]} 3. f4 {[%emt 0:00:04]} e6 {[%emt 0:03:00]} 4. Nf3 {[%emt 0:00:34]} g6 {[%emt 0:00:48]} 5. Bb5 {[%emt 0:00:25]} Nge7 {[%emt 0:02:36]} 6. O-O {[%emt 0:00:39]} Bg7 {[%emt 0:00:06]} 7. d3 {[%emt 0:00:36]} O-O {[%emt 0:00:29]} 8. Be3 {[%emt 0:01:46]} d6 {[%emt 0:01:01]} 9. Rb1 {[%emt 0:01:06]} a6 {[%emt 0:01:52]} 10. Ba4 {[%emt 0:00:39]} b5 {[%emt 0:00:35]} 11. Bb3 {[%emt 0:00:25]} Bb7 {[%emt 0:03:01]} 12. Ne2 {[%emt 0:02:59]} Na5 {[%emt 0:00:45]} 13. c3 {[%emt 0:02:58]} Nxb3 14. axb3 {[%emt 0:01:08]} Rc8 {[%emt 0:03:04]} 15. Qd2 {[%emt 0:03:57]} f5 16. Ng3 {[%emt 0:05:56]} Qd7 {[%emt 0:13:48]} 17. Rbe1 {[%emt 0:03:17]} Rfe8 {[%emt 0:00:55]} 18. Bf2 {[%emt 0:01:20]} Qc6 {[%emt 0:06:21]} 19. Re3 {[%emt 0:02:10]} fxe4 {[%emt 0:04:37]} 20. dxe4 {[%emt 0:01:53]} d5 {[%emt 0:06:37]} 21. exd5 Nxd5 22. Re2 {[%emt 0:07:02]} Rcd8 {[%emt 0:12:03]} 23. Qc1 {[%emt 0:06:37]} Rd7 {[%emt 0:07:36]} 24. Ne4 {[%emt 0:02:40]} c4 {[%emt 0:00:49]} 25. Nc5 Rde7 {[%emt 0:01:51]} 26. bxc4 {[%emt 0:04:06]} bxc4 {[%emt 0:00:38]} 27. Rfe1 {[%emt 0:03:36]} Nf6 {[%emt 0:01:52]} 28. Nxb7 {[%emt 0:04:26]} Qxb7 {[%emt 0:00:07]} 29. Nd4 {[%emt 0:08:25]} Qc8 {[%emt 0:03:30]} 30. Qe3 {[%emt 0:01:55]} Ng4 {[%emt 0:01:16]} 31. Qf3 {[%emt 0:02:51]} Nxf2 {[%emt 0:00:06]} 32. Rxf2 {[%emt 0:00:45]} Bxd4 {[%emt 0:00:28]} 33. cxd4 {[%emt 0:00:43]} Qd7 {[%emt 0:00:23]} 34. Qc3 {[%emt 0:02:49]} Qa4 {[%emt 0:02:13]} 35. Rfe2 {[%emt 0:01:43]} Qb5 {[%emt 0:02:41]} 36. Re5 {[%emt 0:07:06]} Qb3 {[%emt 0:01:30]} 37. Qxb3 {[%emt 0:00:57]} cxb3 {[%emt 0:00:08]} 38. Ra5 {[%emt 0:00:38]} Rd7 {[%emt 0:01:23]} 39. Rd1 {[%emt 0:02:12]} Rd6 {[%emt 0:01:08]} 40. Rd3 {[%emt 0:00:00]} Rb8 {[%emt 0:00:00]} 41. Rc5 {[%emt 0:09:38]} Rb4 {[%emt 0:02:45]} 42. d5 {[%emt 0:05:03]} Rxf4 {[%emt 0:01:41]} 43. Rxb3 {[%emt 0:05:16]} Rxd5 {[%emt 0:01:23]} 44. Rxd5 {[%emt 0:01:42]} exd5 {[%emt 0:00:09]} 45. Rd3 {[%emt 0:00:30]} Rb4 {[%emt 0:00:35]} 46. b3 {[%emt 0:02:03]} Kg7 {[%emt 0:01:15]} 47. Kf2 {[%emt 0:00:51]} Rb5 {[%emt 0:00:39]} 48. Ke2 {[%emt 0:01:23]} Kf6 {[%emt 0:00:29]} 49. Kd2 {[%emt 0:01:49]} a5 {[%emt 0:01:08]} 50. Kc2 {[%emt 0:02:20]} Rc5+ {[%emt 0:00:52]} 51. Kb2 {[%emt 0:01:28]} h5 {[%emt 0:00:20]} 52. Rd4 {[%emt 0:02:40]} Ke5 {[%emt 0:00:18]} 53. Rd2 {[%emt 0:00:45]} Rb5 {[%emt 0:00:38]} 54. g3 Rb4 {[%emt 0:00:10]} 55. Re2+ {[%emt 0:02:25]} Re4 {[%emt 0:00:09]} 56. Rd2 {[%emt 0:00:59]} h4 {[%emt 0:00:22]} 57. gxh4 {[%emt 0:00:42]} Rxh4 {[%emt 0:00:07]} 58. Re2+ {[%emt 0:00:28]} Re4 {[%emt 0:00:05]} 59. Rg2 {[%emt 0:00:38]} Kf5 {[%emt 0:00:34]} 60. Rd2 {[%emt 0:00:52]} d4 {[%emt 0:00:45]} 61. Rc2 {[%emt 0:01:26]} Re5 {[%emt 0:00:34]} 62. Rd2 {[%emt 0:00:56]} Ke4 {[%emt 0:00:18]} 63. Ka3 {[%emt 0:03:03]} d3 {[%emt 0:01:11]} 64. Rd1 {[%emt 0:01:33]} Rd5 {[%emt 0:00:22]} 65. b4 {[%emt 0:01:15]} axb4+ {[%emt 0:00:40]} 66. Kxb4 {[%emt 0:00:17]} d2 {[%emt 0:00:14]} 67. Kc4 {[%emt 0:01:12]} Rd8 {[%emt 0:00:17]} 68. Kc3 {[%emt 0:02:00]} Ke3 {[%emt 0:00:15]} 69. Kb2 {[%emt 0:00:58]} Ke2 {[%emt 0:00:15]} 70. Rxd2+ {[%emt 0:00:18]} Rxd2+ {[%emt 0:00:06]} 71. Kc3 {[%emt 0:00:41]} Ke3 {[%emt 0:00:07]} 72. Kc4 {[%emt 0:00:40]} Rxh2 {[%emt 0:00:07]} 73. Kd5 {[%emt 0:00:06]} g5 0-1